fUSD/lending_fUSD_20240125
["ID","MTS","AMOUNT","RATE_DAILY","PERIOD"]
[312694785,1706147588137,500.0,0.00021425,2]
[312694786,1706147588294,500.0,0.00021425,2]
[312694787,1706147588472,500.0,0.00021425,2]
[312694788,1706147588909,500.0,0.00021425,2]
[312694789,1706147589143,500.0,0.00021425,2]
[312694790,1706147589569,500.0,0.00021425,2]
[312694791,1706147589825,500.0,0.00021425,2]
[312694792,1706147595675,200.0,0.00021424,2]
[312694793,1706147595911,200.0,0.00021425,2]
[312694794,1706147606771,1000.0,0.00021598,2]
[312694798,1706148121965,156.07,0.0001996,2]
[312694800,1706148194200,200.0,0.000198,2]
[312694821,1706148573341,156.07,0.00019838,2]
[312694841,1706148631647,-285.79694982,0.00021737,2]
[312694842,1706148631658,-160.88730639,0.00021738,2]
[312694843,1706148631668,-374.8,0.0002174,2]
[312694844,1706148631678,-2549.99,0.00021756,2]
[312694845,1706148631687,-345.52,0.00021788,2]
[312694846,1706148631697,-2000.0,0.00021821,2]
[312694847,1706148631706,-250.0,0.00021918,2]
[312694848,1706148631716,-194.18,0.00021946,2]
[312694849,1706148631726,-150.0,0.00022,2]
[312694850,1706148631736,-499.0,0.00022043,2]
[312694851,1706148631745,-357.37273838,0.0002229,2]
[312694852,1706148631755,-261.55793261,0.0002238,2]
[312694853,1706148631765,-300.0,0.00022386,2]
[312694854,1706148631779,-499.99,0.00022387,2]
[312694855,1706148631790,-1281.49,0.00022387,2]
[312694856,1706148631800,-1003.66843074,0.00022389,2]
[312694857,1706148631809,-37423.62817118,0.0002239,2]
[312694858,1706148631821,-394.61416969,0.0002239,2]
[312694859,1706148631850,-422.68579991,0.0002239,2]
[312694860,1706148631867,-61759.07185922,0.0002239,2]
[312694861,1706148631877,-115348.64864081,0.0002239,2]
[312694862,1706148631888,-327.01287504,0.0002239,2]
[312694863,1706148631904,-411.68315571,0.0002239,2]
[312694864,1706148631916,-499.82864977,0.0002239,2]
[312694865,1706148631927,-353.62981947,0.0002239,2]
[312694866,1706148631939,-1456.18436291,0.0002239,2]
[312694867,1706148631954,-7600.81963993,0.0002239,2]
[312694871,1706148637649,-357.37273836,0.00022378,2]
[312694872,1706148637659,-119002.19285636,0.0002239,2]
[312694873,1706148637668,-1000.0,0.0002239,2]
[312694874,1706148637677,-325772.861,0.0002239,2]
[312694875,1706148637686,-8258.2952,0.0002239,2]
[312694876,1706148637696,-506.6405,0.0002239,2]
[312694877,1706148637705,-9722.97270042,0.00022488,2]
[312694878,1706148637715,-181022.77947861,0.0002249,5]
[312694879,1706148637724,-374.8,0.00022545,2]
[312694880,1706148637734,-153.44198825,0.00022548,2]
[312694881,1706148637743,-500.0,0.0002265,2]
[312694882,1706148637753,-1000.0,0.0002265,2]
[312694883,1706148637762,-129547.91325259,0.0002275,2]
[312694884,1706148637773,-1000.0,0.00022791,2]
[312694885,1706148637784,-480.84013426,0.000229,2]
[312694886,1706148637794,-209.0,0.000229,2]
[312694887,1706148637804,-5000.0,0.000229,2]
[312694888,1706148637814,-154.3385628,0.000229,2]
[312694889,1706148637824,-480.84013418,0.00022912,2]
[312694890,1706148637833,-480.84013418,0.00022924,2]
[312694891,1706148637842,-480.84013418,0.00022936,2]
[312694892,1706148637852,-480.84013418,0.00022948,2]
[312694893,1706148637864,-480.84013418,0.0002296,2]
[312694894,1706148637875,-480.84013418,0.00022972,2]
[312694895,1706148637884,-480.84013418,0.00022984,2]
[312694896,1706148637893,-480.84013418,0.00022996,2]
[312694897,1706148637903,-208.45165073,0.00022999,2]
[312694898,1706148637912,-631.48868854,0.00022999,2]
[312694899,1706148637921,-197.55215382,0.00022999,2]
[312694900,1706148637930,-500.0,0.00022999,2]
[312694902,1706148637948,-375.79333034,0.00022999,2]
[312694903,1706148637961,-150.0,0.00022999,2]
[312694905,1706148637971,-150.0,0.00022999,2]
[312694906,1706148637981,-282.32763579,0.00022999,2]
[312694907,1706148637990,-150.0,0.00022999,2]
[312694908,1706148638000,-150.0,0.00022999,2]
[312694909,1706148638010,-150.0,0.00022999,2]
[312694910,1706148638019,-150.0,0.00022999,2]
[312694911,1706148638029,-150.0,0.00022999,2]
[312694912,1706148638038,-150.0,0.00022999,2]
[312694914,1706148638048,-150.0,0.00022999,2]
[312694915,1706148638058,-278.1618697,0.00022999,2]
[312694916,1706148638303,-385.73643394,0.00023,2]
[312694917,1706148638312,-2066703.6413598,0.00023,2]
[312694918,1706148638325,-395322.12287783,0.00023,2]
[312694919,1706148638345,-100499.35924303,0.00023,2]
[312694920,1706148638440,-663.82397426,0.00023,2]
[312694933,1706148640167,-357.37273836,0.00022467,2]
[312694934,1706148640177,-1072.8110214,0.00023,2]
[312694935,1706148640876,-37822.28768629,0.00023,2]
[312694936,1706148640936,-812.1319277,0.00023,2]
[312694937,1706148640948,-1286.02933199,0.00023,2]
[312694938,1706148640994,-1065.37780221,0.00023,2]
[312694953,1706148642667,-357.37273836,0.00022555,2]
[312694954,1706148642676,-703674.73336153,0.00023,2]
[312694955,1706148642687,-492635.32210479,0.00023,2]
[312694963,1706148645712,-500.0,0.0002229,2]
[312694964,1706148645722,-420.41555782,0.00022999,2]
[312694965,1706148645731,-1678.96931353,0.00023,2]
[312694966,1706148645858,-290.92176094,0.00023,2]
[312694967,1706148645870,-770.43149471,0.00023,2]
[312694971,1706149414572,1451.36109217,0.00019643,2]
[312694972,1706149414889,1451.36109217,0.00019737,2]
[312694973,1706149415402,1451.36109217,0.00020083,2]
[312694974,1706149415964,1451.36109217,0.00020416,2]
[312694975,1706149416727,1451.36109217,0.00020559,2]
[312694976,1706149417412,1451.36109217,0.00020872,2]
[312694977,1706149417503,1451.36109217,0.00021269,2]
[312694978,1706149417692,1451.36109217,0.00021459,2]
[312694979,1706149541547,1451.36109217,0.00020899,2]
[312694980,1706149541850,1451.36109217,0.00021167,2]
[312694981,1706149542187,1451.36109217,0.0002148,2]
[312694982,1706149576978,362.54,0.00019959,2]
[312694983,1706149795173,446.97892652,0.00019747,2]
[312694984,1706149795338,861.19139746,0.00019959,2]
[312694985,1706149815332,867.82665123,0.00019959,2]
[312694988,1706149831830,-385.97346546,0.00021875,2]
[312694989,1706149831883,-616.714,0.00021875,2]
[312694990,1706149831998,-321.90484521,0.00021875,2]
[312694991,1706149832010,-126.7687815,0.00021875,2]
[312694992,1706149832019,-435.7308499,0.00021966,2]
[312694993,1706149832060,-99.0891501,0.00021966,2]
[312694994,1706149832069,-153.626281,0.00021999,2]
[312694995,1706149832118,-1297.73481117,0.00021999,2]
[312694996,1706149832128,-176.54,0.00022,2]
[312694997,1706149832138,-250.0,0.00022147,2]
[312694998,1706149832150,-150.0,0.00022188,2]
[312694999,1706149832164,-150.0,0.00022188,2]
[312695000,1706149832173,-820.09145796,0.00022188,2]
[312695001,1706149832392,-540.2857,0.00022188,2]
[312695002,1706149832401,-1003.66843073,0.00022189,2]
[312695003,1706149832411,-713.97,0.00022189,2]
[312695004,1706149832420,-712.39,0.00022189,2]
[312695005,1706149832429,-1003.66843073,0.00022189,2]
[312695006,1706149832438,-49335.85203643,0.0002219,2]
[312695007,1706149837931,-150.0,0.00022,2]
[312695008,1706149837941,-50664.14796357,0.0002219,2]
[312695009,1706149837950,-3228.2853,0.0002219,2]
[312695010,1706149837959,-714.71,0.0002219,2]
[312695011,1706149837968,-724.08,0.0002219,2]
[312695012,1706149837978,-39893.4789,0.0002219,2]
[312695013,1706149837988,-79.4923895,0.00022223,2]
[312695014,1706149837999,-283.0476105,0.00022223,2]
[312695015,1706149838009,-499.99,0.00022223,2]
[312695016,1706149838018,-886.33,0.00022233,2]
[312695017,1706149838027,-543.82,0.00022288,2]
[312695018,1706149838036,-285.51851062,0.00022288,2]
[312695019,1706149838046,-208.12714649,0.00022288,2]
[312695020,1706149838055,-154.33074914,0.00022288,2]
[312695021,1706149838067,-0.66925086,0.00022288,2]
[312695022,1706149838076,-164.20440428,0.00022288,2]
[312695023,1706149838085,-2330.39487054,0.00022288,2]
[312695024,1706149838095,-296.66375554,0.00022288,2]
[312695025,1706149838104,-2005.66608114,0.00022288,2]
[312695026,1706149838113,-155.12441259,0.00022288,2]
[312695027,1706149838123,-1490.84678614,0.00022288,2]
[312695028,1706149838133,-3160.34406194,0.00022288,2]
[312695029,1706149838142,-251.50162129,0.00022288,2]
[312695030,1706149838152,-243.69213406,0.00022288,2]
[312695031,1706149838167,-319.17553003,0.00022288,2]
[312695032,1706149838178,-2078.31093919,0.0002229,2]
[312695033,1706149838226,-1478.00002489,0.0002229,2]
[312695034,1706149838239,-209425.31923592,0.0002229,2]
[312695035,1706149838249,-1451.36109217,0.0002233,2]
[312695037,1706149838258,-1475.31405036,0.00022448,2]
[312695039,1706149838267,-176.54,0.00022548,2]
[312695041,1706149838277,-1451.36109217,0.00022706,2]
[312695043,1706149838286,-59495.59031799,0.0002277,2]
[312695045,1706149838295,-800.0,0.00022791,2]
[312695047,1706149838305,-168.01,0.00022791,2]
[312695049,1706149838314,-295.4,0.00022791,2]
[312695051,1706149838323,-2000.0,0.00022791,2]
[312695053,1706149838332,-402.5,0.00022877,2]
[312695055,1706149838342,-799.4535,0.000229,2]
[312695057,1706149838352,-1000.0,0.000229,2]
[312695059,1706149838361,-500.0,0.000229,2]
[312695061,1706149838370,-1847.89025818,0.000229,2]
[312695063,1706149838379,-255.42907189,0.000229,2]
[312695065,1706149838388,-209.0,0.000229,2]
[312695067,1706149838398,-168.58684828,0.000229,2]
[312695069,1706149838407,-5000.0,0.000229,2]
[312695071,1706149838418,-153.18837129,0.000229,2]
[312695073,1706149838427,-1000.0,0.000229,2]
[312695075,1706149838438,-194.18,0.00022962,2]
[312695077,1706149838448,-174.16808736,0.0002299,2]
[312695079,1706149838458,-174.16808736,0.0002299,2]
[312695081,1706149838468,-174.16808736,0.0002299,2]
[312695083,1706149838479,-156.08016594,0.00022998,2]
[312695085,1706149838487,-272.11338662,0.00022999,2]
[312695087,1706149838497,-121260.05305891,0.00022999,2]
[312695089,1706149838505,-500.0,0.00022999,2]
[312695091,1706149838515,-500.0,0.00022999,2]
[312695093,1706149838524,-500.0,0.00022999,2]
[312695095,1706149838533,-503.17332138,0.00022999,2]
[312695097,1706149838542,-500.0,0.00022999,2]
[312695099,1706149838551,-500.0,0.00022999,2]
[312695101,1706149838561,-500.0,0.00022999,2]
[312695104,1706149838573,-500.0,0.00022999,2]
[312695107,1706149838591,-500.0,0.00022999,2]
[312695109,1706149838607,-625.16715482,0.00022999,2]
[312695112,1706149838621,-348.85222172,0.00022999,2]
[312695115,1706149838637,-500.0,0.00022999,2]
[312695117,1706149838654,-500.0,0.00022999,2]
[312695120,1706149838668,-243.17950689,0.00022999,2]
[312695122,1706149838681,-385.07011253,0.00022999,2]
[312695125,1706149838695,-300.0,0.00022999,2]
[312695128,1706149838710,-300.0,0.00022999,2]
[312695130,1706149838726,-300.0,0.00022999,2]
[312695133,1706149838737,-300.0,0.00022999,2]
[312695135,1706149838753,-300.0,0.00022999,2]
[312695138,1706149838769,-300.0,0.00022999,2]
[312695141,1706149838782,-300.0,0.00022999,2]
[312695143,1706149838797,-300.0,0.00022999,2]
[312695146,1706149838812,-300.0,0.00022999,2]
[312695149,1706149838828,-300.0,0.00022999,2]
[312695151,1706149838843,-300.0,0.00022999,2]
[312695153,1706149838855,-300.0,0.00022999,2]
[312695156,1706149838868,-300.0,0.00022999,2]
[312695158,1706149838882,-300.0,0.00022999,2]
[312695161,1706149838897,-300.0,0.00022999,2]
[312695163,1706149838908,-300.0,0.00022999,2]
[312695166,1706149838920,-300.0,0.00022999,2]
[312695169,1706149838936,-300.0,0.00022999,2]
[312695171,1706149838948,-300.0,0.00022999,2]
[312695173,1706149838960,-300.0,0.00022999,2]
[312695176,1706149838973,-300.0,0.00022999,2]
[312695178,1706149838986,-300.0,0.00022999,2]
[312695180,1706149838999,-300.0,0.00022999,2]
[312695183,1706149839012,-167.92454049,0.00022999,2]
[312695185,1706149839024,-500.0,0.00022999,2]
[312695188,1706149839036,-221.26752813,0.00022999,2]
[312695190,1706149839049,-150.0,0.00022999,2]
[312695192,1706149839062,-150.0,0.00022999,2]
[312695195,1706149839074,-150.0,0.00022999,2]
[312695197,1706149839088,-150.0,0.00022999,2]
[312695200,1706149839101,-150.0,0.00022999,2]
[312695202,1706149839113,-150.0,0.00022999,2]
[312695204,1706149839126,-150.0,0.00022999,2]
[312695207,1706149839138,-150.0,0.00022999,2]
[312695208,1706149839151,-150.0,0.00022999,2]
[312695209,1706149839165,-150.0,0.00022999,2]
[312695210,1706149839179,-2670233.31660397,0.00023,2]
[312695211,1706149839191,-4391920.41970939,0.00023,2]
[312695212,1706149839204,-292.31,0.00023,2]
[312695213,1706149839216,-203.01,0.00023,2]
[312695215,1706149839231,-292.31,0.00023,2]
[312695217,1706149839244,-292.31,0.00023,2]
[312695219,1706149839259,-2000.0,0.00023,2]
[312695222,1706149839274,-200.0,0.00023,2]
[312695224,1706149839287,-176.54,0.00023096,2]
[312695227,1706149839300,-409.25,0.000231,2]
[312695229,1706149839313,-283.63,0.000231,2]
[312695232,1706149839326,-150.0,0.000231,2]
[312695234,1706149839340,-150.0,0.000231,2]
[312695237,1706149839353,-419.17,0.000231,2]
[312695239,1706149839365,-384.0,0.000231,2]
[312695241,1706149839378,-150.0,0.000231,2]
[312695244,1706149839391,-942.96,0.000231,2]
[312695246,1706149839404,-150.0,0.000231,2]
[312695248,1706149839416,-150.0,0.000231,2]
[312695251,1706149839430,-419.17,0.000231,2]
[312695253,1706149839442,-292.31,0.000231,2]
[312695256,1706149839456,-150.0,0.000231,2]
[312695258,1706149839469,-402.42,0.000231,2]
[312695261,1706149839484,-419.17,0.000231,2]
[312695263,1706149839496,-292.31,0.000231,2]
[312695265,1706149839509,-150.0,0.000231,2]
[312695268,1706149839523,-409.25,0.000231,2]
[312695270,1706149839535,-150.0,0.000231,2]
[312695272,1706149839548,-942.96,0.000231,2]
[312695275,1706149839560,-150.0,0.000231,2]
[312695277,1706149839572,-294.83,0.000231,2]
[312695280,1706149839585,-419.17,0.000231,2]
[312695282,1706149839597,-150.0,0.000231,2]
[312695284,1706149839610,-150.0,0.000231,2]
[312695287,1706149839623,-292.31,0.000231,2]
[312695289,1706149839635,-150.0,0.000231,2]
[312695291,1706149839648,-150.0,0.000231,2]
[312695294,1706149839660,-409.25,0.000231,2]
[312695296,1706149839673,-150.0,0.000231,2]
[312695299,1706149839685,-294.83,0.000231,2]
[312695301,1706149839698,-942.96,0.000231,2]
[312695304,1706149839711,-150.0,0.000231,2]
[312695306,1706149839725,-150.0,0.000231,2]
[312695308,1706149839737,-150.0,0.000231,2]
[312695311,1706149839750,-402.42,0.000231,2]
[312695313,1706149839763,-292.31,0.000231,2]
[312695316,1706149839775,-150.0,0.000231,2]
[312695318,1706149839787,-419.17,0.000231,2]
[312695320,1706149839800,-942.96,0.000231,2]
[312695323,1706149839813,-409.25,0.000231,2]
[312695325,1706149839826,-150.0,0.000231,2]
[312695328,1706149839840,-150.0,0.000231,2]
[312695330,1706149839852,-294.83,0.000231,2]
[312695332,1706149839865,-292.31,0.000231,2]
[312695335,1706149839878,-150.0,0.000231,2]
[312695337,1706149839890,-150.0,0.000231,2]
[312695340,1706149839902,-294.83,0.000231,2]
[312695342,1706149839915,-942.96,0.000231,2]
[312695344,1706149839927,-152.47,0.000231,2]
[312695347,1706149839940,-402.42,0.000231,2]
[312695349,1706149839952,-150.0,0.000231,2]
[312695352,1706149839965,-150.0,0.000231,2]
[312695354,1706149839979,-419.17,0.000231,2]
[312695356,1706149839992,-409.25,0.000231,2]
[312695359,1706149840006,-150.0,0.000231,2]
[312695361,1706149840019,-292.31,0.000231,2]
[312695364,1706149840031,-150.0,0.000231,2]
[312695366,1706149840040,-294.83,0.000231,2]
[312695368,1706149840049,-150.0,0.000231,2]
[312695369,1706149840058,-150.0,0.000231,2]
[312695372,1706149840067,-419.17,0.000231,2]
[312695374,1706149840076,-150.0,0.000231,2]
[312695376,1706149840086,-942.96,0.000231,2]
[312695378,1706149840095,-409.25,0.000231,2]
[312695380,1706149840104,-150.0,0.000231,2]
[312695382,1706149840113,-292.31,0.000231,2]
[312695412,1706149840392,-402.42,0.000231,2]
[312695417,1706149840425,-294.83,0.000231,2]
[312695419,1706149840439,-150.0,0.000231,2]
[312695421,1706149840448,-150.0,0.000231,2]
[312695423,1706149840458,-294.83,0.000231,2]
[312695425,1706149840467,-150.0,0.000231,2]
[312695427,1706149840477,-419.17,0.000231,2]
[312695429,1706149840487,-942.96,0.000231,2]
[312695431,1706149840496,-409.25,0.000231,2]
[312695433,1706149840505,-292.31,0.000231,2]
[312695435,1706149840515,-294.83,0.000231,2]
[312695437,1706149840524,-150.0,0.000231,2]
[312695439,1706149840533,-402.42,0.000231,2]
[312695441,1706149840541,-294.83,0.000231,2]
[312695443,1706149840550,-150.0,0.000231,2]
[312695445,1706149840559,-150.0,0.000231,2]
[312695447,1706149840568,-942.96,0.000231,2]
[312695449,1706149840577,-150.0,0.000231,2]
[312695451,1706149840586,-409.25,0.000231,2]
[312695453,1706149840595,-150.0,0.000231,2]
[312695455,1706149840604,-942.96,0.000231,2]
[312695457,1706149840613,-419.17,0.000231,2]
[312695459,1706149840622,-292.31,0.000231,2]
[312695461,1706149840631,-294.83,0.000231,2]
[312695463,1706149840640,-150.0,0.000231,2]
[312695464,1706149840649,-402.42,0.000231,2]
[312695465,1706149840658,-942.96,0.000231,2]
[312695466,1706149840666,-150.0,0.000231,2]
[312695467,1706149840675,-409.25,0.000231,2]
[312695468,1706149840684,-150.0,0.000231,2]
[312695469,1706149840694,-419.17,0.000231,2]
[312695470,1706149840703,-150.0,0.000231,2]
[312695472,1706149840712,-294.83,0.000231,2]
[312695474,1706149840721,-942.96,0.000231,2]
[312695476,1706149840730,-150.0,0.000231,2]
[312695478,1706149840739,-150.0,0.000231,2]
[312695480,1706149840748,-409.25,0.000231,2]
[312695482,1706149840757,-150.0,0.000231,2]
[312695484,1706149840765,-402.42,0.000231,2]
[312695486,1706149840774,-292.31,0.000231,2]
[312695488,1706149840783,-419.17,0.000231,2]
[312695490,1706149840792,-150.0,0.000231,2]
[312695492,1706149840801,-150.0,0.000231,2]
[312695494,1706149840810,-419.17,0.000231,2]
[312695496,1706149840819,-150.0,0.000231,2]
[312695498,1706149840828,-150.0,0.000231,2]
[312695500,1706149840837,-294.83,0.000231,2]
[312695502,1706149840846,-942.96,0.000231,2]
[312695504,1706149840855,-150.0,0.000231,2]
[312695506,1706149840864,-419.17,0.000231,2]
[312695508,1706149840873,-150.0,0.000231,2]
[312695510,1706149840882,-150.0,0.000231,2]
[312695512,1706149840891,-150.0,0.000231,2]
[312695514,1706149840900,-942.96,0.000231,2]
[312695516,1706149840909,-294.83,0.000231,2]
[312695518,1706149840918,-402.42,0.000231,2]
[312695520,1706149840927,-150.0,0.000231,2]
[312695522,1706149840936,-409.25,0.000231,2]
[312695524,1706149840945,-150.0,0.000231,2]
[312695525,1706149840954,-294.83,0.000231,2]
[312695527,1706149840963,-942.96,0.000231,2]
[312695530,1706149840973,-419.17,0.000231,2]
[312695532,1706149840982,-150.0,0.000231,2]
[312695534,1706149840991,-150.0,0.000231,2]
[312695535,1706149841000,-292.31,0.000231,2]
[312695537,1706149841009,-150.0,0.000231,2]
[312695539,1706149841018,-150.0,0.000231,2]
[312695541,1706149841027,-942.96,0.000231,2]
[312695543,1706149841037,-294.83,0.000231,2]
[312695545,1706149841046,-150.0,0.000231,2]
[312695548,1706149841055,-409.25,0.000231,2]
[312695550,1706149841064,-292.31,0.000231,2]
[312695552,1706149841073,-402.42,0.000231,2]
[312695554,1706149841082,-150.0,0.000231,2]
[312695556,1706149841091,-419.17,0.000231,2]
[312695557,1706149841101,-150.0,0.000231,2]
[312695559,1706149841109,-409.25,0.000231,2]
[312695561,1706149841119,-294.83,0.000231,2]
[312695563,1706149841127,-419.17,0.000231,2]
[312695565,1706149841137,-409.25,0.000231,2]
[312695567,1706149841146,-942.96,0.000231,2]
[312695569,1706149841155,-292.31,0.000231,2]
[312695571,1706149841164,-150.0,0.000231,2]
[312695573,1706149841174,-394.56,0.000231,2]
[312695575,1706149841183,-150.0,0.000231,2]
[312695577,1706149841193,-402.42,0.000231,2]
[312695579,1706149841202,-150.0,0.000231,2]
[312695581,1706149841211,-294.83,0.000231,2]
[312695583,1706149841221,-409.25,0.000231,2]
[312695585,1706149841232,-150.0,0.000231,2]
[312695587,1706149841241,-419.17,0.000231,2]
[312695589,1706149841253,-942.96,0.000231,2]
[312695591,1706149841262,-150.0,0.000231,2]
[312695593,1706149841272,-292.31,0.000231,2]
[312695595,1706149841282,-150.0,0.000231,2]
[312695597,1706149841292,-419.17,0.000231,2]
[312695599,1706149841301,-402.42,0.000231,2]
[312695601,1706149841311,-294.83,0.000231,2]
[312695603,1706149841320,-419.17,0.000231,2]
[312695605,1706149841329,-942.96,0.000231,2]
[312695607,1706149841338,-150.0,0.000231,2]
[312695609,1706149841347,-294.83,0.000231,2]
[312695611,1706149841356,-409.25,0.000231,2]
[312695613,1706149841364,-419.17,0.000231,2]
[312695615,1706149841373,-942.96,0.000231,2]
[312695617,1706149841382,-942.96,0.000231,2]
[312695619,1706149841391,-402.42,0.000231,2]
[312695621,1706149841400,-419.17,0.000231,2]
[312695623,1706149841409,-294.83,0.000231,2]
[312695625,1706149841418,-150.0,0.000231,2]
[312695627,1706149841428,-409.25,0.000231,2]
[312695629,1706149841437,-419.17,0.000231,2]
[312695631,1706149841446,-942.96,0.000231,2]
[312695633,1706149841455,-402.42,0.000231,2]
[312695635,1706149841463,-294.83,0.000231,2]
[312695637,1706149841473,-150.0,0.000231,2]
[312695639,1706149841482,-419.17,0.000231,2]
[312695641,1706149841491,-942.96,0.000231,2]
[312695643,1706149841500,-419.17,0.000231,2]
[312695645,1706149841510,-942.96,0.000231,2]
[312695647,1706149841519,-402.42,0.000231,2]
[312695648,1706149841529,-419.17,0.000231,2]
[312695649,1706149841538,-150.0,0.000231,2]
[312695650,1706149841547,-942.96,0.000231,2]
[312695651,1706149841556,-150.0,0.000231,2]
[312695652,1706149841565,-150.0,0.000231,2]
[312695653,1706149841575,-294.83,0.000231,2]
[312695654,1706149841586,-402.42,0.000231,2]
[312695655,1706149841596,-942.96,0.000231,2]
[312695656,1706149841605,-150.0,0.000231,2]
[312695657,1706149841615,-294.83,0.000231,2]
[312695658,1706149841625,-297.39,0.000231,2]
[312695659,1706149841636,-246.1,0.000231,2]
[312695660,1706149841646,-182.69,0.000231,2]
[312695661,1706149841655,-223.71,0.000231,2]
[312695662,1706149841665,-543.82,0.00023112,2]
[312695663,1706149841674,-2000.0,0.0002323,2]
[312695664,1706149841683,-200.0,0.0002323,2]
[312695665,1706149841693,-1451.36109217,0.00023265,2]
[312695666,1706149841702,-1451.36109217,0.00023289,2]
[312695667,1706149841711,-233.9453121,0.0002337,2]
[312695668,1706149841719,-2000.0,0.00023462,2]
[312695669,1706149841729,-439.13,0.00023635,2]
[312695670,1706149841738,-176.54,0.00023644,2]
[312695671,1706149841747,-1451.36109217,0.00023665,2]
[312695672,1706149841757,-543.82,0.00023937,2]
[312695673,1706149841766,-176.54,0.00024192,2]
[312695674,1706149841775,-153.18837128,0.00024352,2]
[312695675,1706149841784,-210.0,0.00024407,2]
[312695676,1706149841794,-362.54,0.00024487,2]
[312695677,1706149841803,-250.0,0.00024658,2]
[312695678,1706149841814,-176.54,0.0002474,2]
[312695679,1706149841826,-543.82,0.00024762,2]
[312695680,1706149841836,-3971.62,0.00025,3]
[312695681,1706149841847,-202.84481839,0.00025,2]
[312695682,1706149841858,-450.0,0.00025,3]
[312695683,1706149841867,-1475.31405036,0.00025005,2]
[312695684,1706149841877,-439.13,0.00025279,2]
[312695685,1706149841886,-176.54,0.00025288,2]
[312695686,1706149841895,-1847.89025812,0.00025292,2]
[312695687,1706149841904,-543.82,0.00025586,2]
[312695688,1706149841913,-800.0,0.0002564,2]
[312695689,1706149841922,-153.18837128,0.00025805,2]
[312695690,1706149841931,-269.27470405,0.00025836,2]
[312695691,1706149841941,-150.0,0.000259,2]
[312695692,1706149841950,-500.0,0.00026,2]
[312695693,1706149841959,-1852.81,0.00026575,2]
[312695694,1706149841970,-362.54,0.00026751,2]
[312695695,1706149841980,-439.13,0.00026923,2]
[312695696,1706149841990,-200.0,0.00026953,2]
[312695697,1706149841999,-602.62,0.00026998,2]
[312695698,1706149842010,-500.0,0.00027,3]
[312695699,1706149842020,-165.74290237,0.00027,2]
[312695700,1706149842029,-418.72672403,0.00027,2]
[312695701,1706149842038,-153.18837128,0.00027257,2]
[312695702,1706149842047,-196.71745587,0.00027328,2]
[312695703,1706149842055,-584.55,0.00027397,2]
[312695704,1706149842065,-4853.31,0.00027397,2]
[312695705,1706149842074,-330.51,0.00027397,2]
[312695706,1706149842085,-3227.0,0.000275,2]
[312695707,1706149842097,-11004.0,0.000275,2]
[312695708,1706149842106,-584.55,0.00027556,2]
[312695709,1706149842115,-1475.31405036,0.00027561,3]